[Event "EYCC Girls-U14 2019"]
[Site "Bratislava"]
[Date "2019.08.10"]
[Round "9.14"]
[White "Anacoglu, Cisel"]
[Black "Kasaeva, Sofiia"]
[Result "1-0"]
[ECO "C96"]
[WhiteElo "1869"]
[BlackElo "1897"]
[Annotator "NA"]
[PlyCount "129"]
[EventDate "2019.08.02"]
[EventType "swiss"]
[EventCountry "SVK"]
[SourceTitle "playchess.com"]
[Source "ChessBase"]
[SourceQuality "1"]
[TimeControl "40/5400+30:1800+30"]

1. e4 {[%emt 0:00:00]} e5 {[%emt 0:00:00]} 2. Nf3 {[%emt 0:00:00]} Nc6 {[%emt 0:00:00]} 3. Bb5 {[%emt 0:00:00]} a6 {[%emt 0:00:00]} 4. Ba4 {[%emt 0:00:00]} Nf6 {[%emt 0:00:00]} 5. O-O {[%emt 0:00:00]} Be7 {[%emt 0:00:00]} 6. Re1 {[%emt 0:00:03]} b5 {[%emt 0:00:03]} 7. Bb3 {[%emt 0:00:06]} O-O {[%emt 0:00:29]} 8. h3 {[%emt 0:00:05]} d6 {[%emt 0:00:20]} 9. c3 {[%emt 0:00:07]} Na5 {[%emt 0:00:46]} 10. Bc2 {[%emt 0:00:08]} c5 {[%emt 0:00:05]} 11. d4 {[%emt 0:00:05]} Nd7 {[%emt 0:00:38]} 12. Nbd2 {[%emt 0:00:11]} exd4 {[%emt 0:00:13]} 13. cxd4 {[%emt 0:00:06]} Nc6 {[%emt 0:00:05]} 14. d5 {[%emt 0:00:06]} Nce5 {[%emt 0:00:09]} 15. Nxe5 {[%emt 0:01:06]} Nxe5 {[%emt 0:00:06]} 16. a4 {[%emt 0:00:08]} Rb8 {[%emt 0:00:06]} 17. axb5 {[%emt 0:00:05]} axb5 {[%emt 0:00:05]} 18. f4 {[%emt 0:00:07]} Ng6 {[%emt 0:00:06]} 19. Nf3 {[%emt 0:00:05]} Bh4 {[%emt 0:00:19]} 20. Rf1 {[%emt 0:00:05]} Bg3 {[%emt 0:00:16]} 21. f5 {[%emt 0:00:05]} Ne5 {[%emt 0:00:52]} 22. Ng5 {[%emt 0:00:16]} h6 {[%emt 0:00:19]} 23. f6 {[%emt 0:24:40]} gxf6 {[%emt 0:01:13]} 24. Nf3 {[%emt 0:01:23]} Kg7 {[%emt 0:00:09]} 25. Nxe5 {[%emt 0:02:51]} Bxe5 {[%emt 0:00:14]} 26. Qh5 {[%emt 0:13:54]} Rh8 {[%emt 0:00:45]} 27. Ra7 {[%emt 0:07:06]} Bd7 {[%emt 0:04:17]} 28. Bf4 {[%emt 0:01:48]} Ra8 {[%emt 0:08:00]} 29. Bxe5 {[%emt 0:00:37]} dxe5 {[%emt 0:00:06]} 30. Rxa8 {[%emt 0:00:08]} Qxa8 {[%emt 0:00:20]} 31. Qh4 {[%emt 0:00:14]} Qd8 {[%emt 0:14:46]} 32. Qg3+ {[%emt 0:00:09]} Kh7 {[%emt 0:07:42]} 33. Qf2 {[%emt 0:01:24]} Rg8 {[%emt 0:12:32]} 34. Qxf6 {[%emt 0:17:59]} Qxf6 {[%emt 0:01:22]} 35. Rxf6 {[%emt 0:00:11]} Bxh3 {[%emt 0:01:07]} 36. Rxf7+ {[%emt 0:00:13]} Kg6 {[%emt 0:01:05]} 37. Rf3 {[%emt 0:04:57]} Bg4 {[%emt 0:00:35]} 38. Ra3 {[%emt 0:02:46]} Rf8 {[%emt 0:05:41]} 39. Ra6+ {[%emt 0:07:52]} Kg5 {[%emt 0:01:47]} 40. Ra7 {[%emt 0:00:00]} Be2 {[%emt 0:00:00]} 41. Rg7+ {[%emt 0:02:31]} Kh5 {[%emt 0:13:55]} 42. Kh2 {[%emt 0:07:12]} Rf2 {[%emt 0:10:24]} 43. Kg3 {[%emt 0:02:33]} Rf4 {[%emt 0:02:24]} 44. d6 {[%emt 0:00:27]} Rf6 {[%emt 0:02:29]} 45. d7 {[%emt 0:00:17]} Rd6 {[%emt 0:00:46]} 46. Re7 {[%emt 0:04:33]} Kg5 {[%emt 0:03:30]} 47. Rxe5+ {[%emt 0:04:12]} Kf6 {[%emt 0:00:06]} 48. Rxc5 {[%emt 0:02:41]} Rxd7 {[%emt 0:00:12]} 49. Kf4 {[%emt 0:01:01]} Bc4 {[%emt 0:01:53]} 50. b3 {[%emt 0:04:13]} Bf1 {[%emt 0:01:27]} 51. e5+ {[%emt 0:03:16]} Ke7 {[%emt 0:00:10]} 52. Be4 {[%emt 0:01:27]} Rd4 {[%emt 0:01:07]} 53. Kf5 {[%emt 0:00:27]} Bd3 {[%emt 0:00:59]} 54. Bxd3 {[%emt 0:00:16]} Rxd3 {[%emt 0:00:04]} 55. Rxb5 {[%emt 0:00:53]} Rg3 {[%emt 0:00:06]} 56. Rb7+ {[%emt 0:00:47]} Kd8 {[%emt 0:01:09]} 57. Rh7 {[%emt 0:02:06]} Rg5+ {[%emt 0:01:25]} 58. Kf6 {[%emt 0:04:05]} Rxg2 {[%emt 0:00:17]} 59. Rxh6 {[%emt 0:00:45]} Rg3 {[%emt 0:01:24]} 60. b4 {[%emt 0:01:10]} Rg4 {[%emt 0:00:34]} 61. b5 {[%emt 0:02:06]} Rb4 {[%emt 0:02:55]} 62. Rh8+ {[%emt 0:00:40]} Kc7 {[%emt 0:00:37]} 63. e6 {[%emt 0:00:21]} Rb1 {[%emt 0:01:05]} 64. e7 {[%emt 0:00:11]} Rf1+ {[%emt 0:00:29]} 65. Kg5 {[%emt 0:00:05]} 1-0

[Event "EYCC Girls-U14 2019"]
[Site "Bratislava"]
[Date "2019.08.10"]
[Round "9.15"]
[White "Toth, Nikoletta"]
[Black "Otetea, Ioana"]
[Result "1-0"]
[ECO "A45"]
[WhiteElo "2023"]
[BlackElo "1744"]
[Annotator "NA"]
[PlyCount "143"]
[EventDate "2019.08.02"]
[EventType "swiss"]
[EventCountry "SVK"]
[SourceTitle "playchess.com"]
[Source "ChessBase"]
[SourceQuality "1"]
[TimeControl "40/5400+30:1800+30"]

1. d4 {[%emt 0:00:00]} Nf6 {[%emt 0:00:00]} 2. Bf4 {[%emt 0:00:00]} d5 {[%emt 0:00:00]} 3. e3 {[%emt 0:00:00]} c5 {[%emt 0:00:00]} 4. c3 {[%emt 0:00:00]} Nc6 {[%emt 0:00:00]} 5. Nf3 {[%emt 0:00:00]} Qb6 {[%emt 0:00:02]} 6. Qc2 {[%emt 0:00:00]} g6 {[%emt 0:00:05]} 7. Nbd2 {[%emt 0:00:03]} Bg7 {[%emt 0:00:25]} 8. Be2 {[%emt 0:01:33]} O-O {[%emt 0:00:37]} 9. O-O {[%emt 0:00:30]} Nd7 {[%emt 0:00:45]} 10. dxc5 {[%emt 0:04:34]} Nxc5 {[%emt 0:05:39]} 11. Nb3 {[%emt 0:08:13]} e5 {[%emt 0:06:20]} 12. Bg5 {[%emt 0:03:24]} Bf5 {[%emt 0:10:52]} 13. Qd1 {[%emt 0:00:25]} h6 {[%emt 0:15:52]} 14. Bh4 {[%emt 0:00:52]} g5 {[%emt 0:00:09]} 15. Bg3 {[%emt 0:01:05]} Rad8 {[%emt 0:00:22]} 16. h4 {[%emt 0:01:50]} g4 {[%emt 0:01:48]} 17. Nfd2 {[%emt 0:00:28]} h5 {[%emt 0:00:28]} 18. Nxc5 {[%emt 0:00:24]} Qxc5 {[%emt 0:00:25]} 19. Nb3 {[%emt 0:00:19]} Qb6 {[%emt 0:00:52]} 20. Bd3 {[%emt 0:05:40]} Ne7 {[%emt 0:04:24]} 21. Kh2 {[%emt 0:04:53]} Qf6 {[%emt 0:06:10]} 22. f3 {[%emt 0:15:31]} e4 {[%emt 0:09:34]} 23. Be2 {[%emt 0:02:41]} gxf3 {[%emt 0:04:00]} 24. gxf3 {[%emt 0:00:17]} Ng6 {[%emt 0:02:02]} 25. Qe1 {[%emt 0:00:46]} Qe7 {[%emt 0:07:33]} 26. f4 {[%emt 0:03:21]} Bf6 {[%emt 0:05:01]} 27. Bxh5 {[%emt 0:03:09]} Nxh4 {[%emt 0:01:05]} 28. Bxh4 {[%emt 0:05:52]} Bxh4 {[%emt 0:00:06]} 29. Rg1+ {[%emt 0:01:14]} Kh7 {[%emt 0:01:20]} 30. Qe2 {[%emt 0:00:20]} Rg8 {[%emt 0:02:27]} 31. Bg4 {[%emt 0:01:14]} Qd7 {[%emt 0:03:11]} 32. Bxf5+ {[%emt 0:01:17]} Qxf5 {[%emt 0:00:10]} 33. Nd4 {[%emt 0:00:34]} Qf6 {[%emt 0:02:26]} 34. Qh5+ {[%emt 0:12:13]} Qh6 {[%emt 0:00:06]} 35. Qxh6+ {[%emt 0:00:06]} Kxh6 {[%emt 0:00:05]} 36. Nf5+ {[%emt 0:01:37]} Kh5 {[%emt 0:00:09]} 37. Rad1 {[%emt 0:04:16]} Rg6 {[%emt 0:06:41]} 38. Rxg6 {[%emt 0:04:39]} fxg6 {[%emt 0:00:06]} 39. Nxh4 {[%emt 0:01:56]} Kxh4 {[%emt 0:00:06]} 40. Rg1 {[%emt 0:00:00]} Rd6 {[%emt 0:00:00]} 41. Rg2 {[%emt 0:05:15]} Ra6 {[%emt 0:04:26]} 42. a3 {[%emt 0:00:54]} Rb6 {[%emt 0:03:57]} 43. Rd2 {[%emt 0:00:12]} Kg4 {[%emt 0:04:12]} 44. Kg2 {[%emt 0:00:38]} a6 {[%emt 0:05:41]} 45. Kf2 {[%emt 0:00:38]} Kh3 {[%emt 0:01:22]} 46. Ke2 {[%emt 0:11:53]} Kg3 {[%emt 0:06:48]} 47. b4 {[%emt 0:00:37]} Rc6 {[%emt 0:01:39]} 48. Rxd5 {[%emt 0:00:38]} Rxc3 {[%emt 0:00:07]} 49. Rg5+ {[%emt 0:00:38]} Kh4 {[%emt 0:01:08]} 50. Rxg6 {[%emt 0:00:10]} Rxa3 {[%emt 0:01:26]} 51. Re6 {[%emt 0:07:15]} Ra2+ {[%emt 0:00:10]} 52. Kd1 {[%emt 0:00:26]} Kg4 {[%emt 0:01:02]} 53. Rxe4 {[%emt 0:00:14]} Kf3 {[%emt 0:00:07]} 54. Re5 {[%emt 0:02:58]} Rb2 {[%emt 0:01:49]} 55. f5 {[%emt 0:01:07]} Rf2 {[%emt 0:06:55]} 56. Re7 {[%emt 0:02:58]} Kg4 {[%emt 0:00:28]} 57. e4 {[%emt 0:00:06]} Rf4 {[%emt 0:01:28]} 58. Ke2 {[%emt 0:00:46]} Kg5 {[%emt 0:00:54]} 59. Ke3 {[%emt 0:00:16]} Rf1 {[%emt 0:00:10]} 60. Rxb7 {[%emt 0:01:04]} Rb1 {[%emt 0:01:17]} 61. Rb6 {[%emt 0:00:42]} Rb2 {[%emt 0:00:46]} 62. Rg6+ {[%emt 0:01:54]} Kh5 {[%emt 0:00:16]} 63. Rxa6 {[%emt 0:00:37]} Rxb4 {[%emt 0:00:08]} 64. Kf4 {[%emt 0:00:14]} Rb1 {[%emt 0:01:08]} 65. Rg6 {[%emt 0:01:11]} Rf1+ {[%emt 0:00:45]} 66. Ke5 {[%emt 0:00:06]} Re1 {[%emt 0:01:01]} 67. Rg2 {[%emt 0:00:30]} Kh6 {[%emt 0:00:17]} 68. Kf6 {[%emt 0:00:19]} Kh7 {[%emt 0:00:31]} 69. e5 {[%emt 0:00:07]} Re4 {[%emt 0:00:28]} 70. e6 {[%emt 0:00:14]} Re3 {[%emt 0:01:01]} 71. Kf7 {[%emt 0:00:15]} Kh6 {[%emt 0:00:10]} 72. e7 {[%emt 0:00:12]} 1-0

[Event "EYCC Girls-U14 2019"]
[Site "Bratislava"]
[Date "2019.08.10"]
[Round "9.16"]
[White "Wikar, Martyna"]
[Black "Batagan, Ilinca-Petra"]
[Result "1-0"]
[ECO "C50"]
[WhiteElo "2020"]
[BlackElo "1767"]
[Annotator "NA"]
[PlyCount "77"]
[EventDate "2019.08.02"]
[EventType "swiss"]
[EventCountry "SVK"]
[SourceTitle "playchess.com"]
[Source "ChessBase"]
[SourceQuality "1"]
[TimeControl "40/5400+30:1800+30"]

1. e4 {[%emt 0:00:00]} e5 {[%emt 0:00:00]} 2. Nf3 {[%emt 0:00:00]} Nf6 {[%emt 0:00:19]} 3. Nc3 {[%emt 0:01:05]} Nc6 {[%emt 0:00:27]} 4. Bc4 {[%emt 0:02:16]} Bc5 {[%emt 0:00:43]} 5. d3 {[%emt 0:00:51]} h6 {[%emt 0:01:35]} 6. Ne2 {[%emt 0:00:51]} O-O {[%emt 0:02:57]} 7. O-O {[%emt 0:00:31]} d5 {[%emt 0:01:54]} 8. exd5 {[%emt 0:01:27]} Nxd5 {[%emt 0:00:13]} 9. Ng3 {[%emt 0:01:02]} Bb6 {[%emt 0:06:09]} 10. a3 {[%emt 0:02:10]} a5 {[%emt 0:02:58]} 11. h3 {[%emt 0:04:11]} Kh8 {[%emt 0:05:51]} 12. Qe2 {[%emt 0:03:21]} Re8 {[%emt 0:01:47]} 13. Qe4 {[%emt 0:03:01]} Nf6 {[%emt 0:04:19]} 14. Qh4 {[%emt 0:01:58]} Be6 {[%emt 0:08:56]} 15. Bxe6 {[%emt 0:01:35]} fxe6 {[%emt 0:00:24]} 16. Nh5 {[%emt 0:09:38]} Nxh5 {[%emt 0:04:07]} 17. Qxh5 {[%emt 0:00:12]} Qf6 {[%emt 0:01:43]} 18. Be3 {[%emt 0:07:20]} Nd4 {[%emt 0:06:01]} 19. Nxe5 {[%emt 0:12:55]} Nxc2 {[%emt 0:02:50]} 20. Bxb6 {[%emt 0:00:55]} cxb6 {[%emt 0:04:44]} 21. Rac1 {[%emt 0:01:17]} Nd4 {[%emt 0:04:17]} 22. Rc7 {[%emt 0:02:47]} Nc6 {[%emt 0:04:42]} 23. Ng4 {[%emt 0:07:51]} Qf5 {[%emt 0:05:35]} 24. Qh4 {[%emt 0:01:10]} Qf4 {[%emt 0:05:19]} 25. Rxb7 {[%emt 0:01:20]} Rab8 {[%emt 0:01:40]} 26. Qh5 {[%emt 0:06:40]} Qf5 {[%emt 0:06:11]} 27. Qf7 {[%emt 0:10:38]} Qxf7 {[%emt 0:00:26]} 28. Rxf7 {[%emt 0:00:03]} Re7 {[%emt 0:01:18]} 29. Rxe7 {[%emt 0:00:31]} Nxe7 {[%emt 0:00:02]} 30. Re1 {[%emt 0:00:33]} Kg8 {[%emt 0:03:17]} 31. Rxe6 {[%emt 0:00:21]} Kf7 {[%emt 0:00:12]} 32. Rd6 {[%emt 0:00:59]} Nf5 {[%emt 0:01:53]} 33. Ne5+ {[%emt 0:01:00]} Ke7 {[%emt 0:00:57]} 34. Rg6 {[%emt 0:00:20]} Rc8 {[%emt 0:02:18]} 35. Rxb6 {[%emt 0:00:38]} Rc1+ {[%emt 0:00:19]} 36. Kh2 {[%emt 0:00:06]} Rc2 {[%emt 0:00:30]} 37. Nc6+ {[%emt 0:01:31]} Kd7 {[%emt 0:00:11]} 38. Nxa5 {[%emt 0:00:17]} Rxf2 {[%emt 0:00:16]} 39. Nc4 {[%emt 0:00:37]} 1-0

[Event "EYCC Girls-U14 2019"]
[Site "Bratislava"]
[Date "2019.08.10"]
[Round "9.17"]
[White "Sumarriva Paulin, Laura"]
[Black "Barwinska, Ewa"]
[Result "1-0"]
[ECO "D35"]
[WhiteElo "1861"]
[BlackElo "1758"]
[Annotator "NA"]
[PlyCount "81"]
[EventDate "2019.08.02"]
[EventType "swiss"]
[EventCountry "SVK"]
[SourceTitle "playchess.com"]
[Source "ChessBase"]
[SourceQuality "1"]
[TimeControl "40/5400+30:1800+30"]

1. d4 {[%emt 0:00:00]} d5 {[%emt 0:00:00]} 2. c4 {[%emt 0:00:00]} e6 {[%emt 0:00:00]} 3. Nc3 {[%emt 0:00:00]} Nf6 {[%emt 0:00:00]} 4. cxd5 {[%emt 0:00:00]} exd5 {[%emt 0:00:12]} 5. Bg5 {[%emt 0:00:02]} Nbd7 {[%emt 0:00:20]} 6. e3 {[%emt 0:00:17]} c6 {[%emt 0:00:08]} 7. Bd3 {[%emt 0:00:16]} Be7 {[%emt 0:00:16]} 8. Nf3 {[%emt 0:00:27]} O-O {[%emt 0:00:16]} 9. Qc2 {[%emt 0:00:49]} Re8 {[%emt 0:00:50]} 10. O-O {[%emt 0:00:49]} Nf8 {[%emt 0:00:30]} 11. h3 {[%emt 0:00:59]} Ng6 {[%emt 0:03:40]} 12. Bxf6 {[%emt 0:14:09]} Bxf6 {[%emt 0:00:38]} 13. b4 {[%emt 0:00:16]} a6 {[%emt 0:01:13]} 14. a4 {[%emt 0:00:20]} Be7 {[%emt 0:06:10]} 15. b5 {[%emt 0:06:44]} axb5 {[%emt 0:02:23]} 16. axb5 {[%emt 0:00:09]} Be6 {[%emt 0:04:09]} 17. bxc6 {[%emt 0:06:02]} bxc6 {[%emt 0:01:13]} 18. Na4 {[%emt 0:01:25]} Qc7 {[%emt 0:05:06]} 19. Nc5 {[%emt 0:07:37]} Bd7 {[%emt 0:07:48]} 20. Bxg6 {[%emt 0:04:08]} hxg6 {[%emt 0:05:49]} 21. Nxd7 {[%emt 0:00:26]} Qxd7 {[%emt 0:00:14]} 22. Ne5 {[%emt 0:00:08]} Qe6 {[%emt 0:02:39]} 23. Qxc6 {[%emt 0:03:04]} Qxc6 {[%emt 0:01:48]} 24. Nxc6 {[%emt 0:00:04]} Bd6 {[%emt 0:00:34]} 25. Rab1 {[%emt 0:03:59]} Ra6 {[%emt 0:05:24]} 26. Nb4 {[%emt 0:05:11]} Bxb4 {[%emt 0:00:44]} 27. Rxb4 {[%emt 0:00:04]} f5 {[%emt 0:03:20]} 28. Rfb1 {[%emt 0:04:18]} Kf7 {[%emt 0:01:37]} 29. Rb7+ {[%emt 0:02:12]} Re7 {[%emt 0:00:33]} 30. Rxe7+ {[%emt 0:00:43]} Kxe7 {[%emt 0:00:09]} 31. Rb7+ {[%emt 0:00:22]} Kf6 {[%emt 0:00:45]} 32. Rd7 {[%emt 0:01:51]} Ra5 {[%emt 0:00:39]} 33. h4 {[%emt 0:00:17]} Rb5 {[%emt 0:02:34]} 34. Kh2 {[%emt 0:03:04]} Ra5 {[%emt 0:01:40]} 35. Kg3 {[%emt 0:00:09]} Rb5 {[%emt 0:00:33]} 36. f3 {[%emt 0:04:14]} Ra5 {[%emt 0:00:30]} 37. Kf4 {[%emt 0:00:15]} Rb5 {[%emt 0:00:16]} 38. g4 {[%emt 0:00:53]} fxg4 {[%emt 0:00:18]} 39. fxg4 {[%emt 0:00:03]} Ra5 {[%emt 0:01:50]} 40. g5+ {[%emt 0:00:00]} Ke6 {[%emt 0:00:00]} 41. Rxg7 {[%emt 0:00:24]} 1-0

[Event "EYCC Girls-U14 2019"]
[Site "Bratislava"]
[Date "2019.08.10"]
[Round "9.18"]
[White "Blokhin, Sofia"]
[Black "Sevcikova, Lucia"]
[Result "1-0"]
[ECO "B10"]
[WhiteElo "1725"]
[BlackElo "1800"]
[Annotator "NA"]
[PlyCount "129"]
[EventDate "2019.08.02"]
[EventType "swiss"]
[EventCountry "SVK"]
[SourceTitle "playchess.com"]
[Source "ChessBase"]
[SourceQuality "1"]
[TimeControl "40/5400+30:1800+30"]

1. e4 {[%emt 0:00:00]} c6 {[%emt 0:00:00]} 2. Nf3 {[%emt 0:00:00]} d5 {[%emt 0:00:00]} 3. Nc3 {[%emt 0:00:00]} Nf6 {[%emt 0:00:12]} 4. e5 {[%emt 0:00:16]} Ne4 {[%emt 0:00:05]} 5. d4 {[%emt 0:01:18]} Nxc3 {[%emt 0:00:20]} 6. bxc3 {[%emt 0:00:09]} e6 {[%emt 0:02:40]} 7. Bd3 {[%emt 0:08:42]} c5 {[%emt 0:03:03]} 8. O-O {[%emt 0:03:17]} c4 {[%emt 0:03:02]} 9. Be2 {[%emt 0:00:14]} Be7 {[%emt 0:01:00]} 10. h3 {[%emt 0:01:28]} Nc6 {[%emt 0:01:51]} 11. Bd2 {[%emt 0:01:36]} O-O {[%emt 0:02:26]} 12. Nh2 {[%emt 0:01:35]} Qa5 {[%emt 0:03:56]} 13. a3 {[%emt 0:02:44]} b5 {[%emt 0:04:54]} 14. f4 {[%emt 0:02:45]} Qb6 {[%emt 0:01:58]} 15. Kh1 {[%emt 0:02:24]} Bd7 {[%emt 0:04:29]} 16. Bg4 {[%emt 0:06:07]} g6 {[%emt 0:03:09]} 17. Qe1 {[%emt 0:04:42]} a5 {[%emt 0:04:37]} 18. Qg3 {[%emt 0:10:56]} Kh8 {[%emt 0:02:10]} 19. Be2 {[%emt 0:04:53]} b4 {[%emt 0:09:49]} 20. Rfb1 {[%emt 0:12:38]} Qc7 {[%emt 0:06:08]} 21. Nf3 {[%emt 0:02:38]} bxc3 {[%emt 0:05:21]} 22. Bxc3 {[%emt 0:01:06]} f6 {[%emt 0:01:42]} 23. Rf1 {[%emt 0:04:11]} Rab8 {[%emt 0:02:07]} 24. h4 {[%emt 0:03:12]} Rg8 {[%emt 0:03:07]} 25. Nh2 {[%emt 0:06:58]} Qd8 {[%emt 0:02:43]} 26. Nf3 {[%emt 0:02:26]} Na7 {[%emt 0:03:30]} 27. a4 {[%emt 0:02:58]} Nc6 {[%emt 0:00:42]} 28. exf6 {[%emt 0:04:03]} Bxf6 {[%emt 0:00:37]} 29. Ng5 {[%emt 0:00:26]} Bxg5 {[%emt 0:01:29]} 30. fxg5 {[%emt 0:01:33]} Qe7 {[%emt 0:04:24]} 31. Bxc4 {[%emt 0:03:32]} Rgf8 {[%emt 0:02:54]} 32. Bb5 {[%emt 0:01:57]} Kg8 {[%emt 0:03:18]} 33. Qd3 {[%emt 0:03:38]} Ra8 {[%emt 0:04:25]} 34. Qe3 {[%emt 0:00:34]} Qd6 {[%emt 0:01:04]} 35. Rfe1 {[%emt 0:00:50]} Rf5 {[%emt 0:02:10]} 36. Rf1 {[%emt 0:00:37]} Raf8 {[%emt 0:02:14]} 37. Rxf5 {[%emt 0:00:07]} Rxf5 {[%emt 0:00:10]} 38. g3 {[%emt 0:00:44]} Qe7 {[%emt 0:02:04]} 39. Re1 {[%emt 0:00:23]} Qf7 {[%emt 0:03:05]} 40. Kg2 {[%emt 0:00:00]} Kh8 {[%emt 0:00:00]} 41. Bd3 {[%emt 0:03:07]} Kg8 {[%emt 0:07:18]} 42. Bxf5 {[%emt 0:00:43]} Qxf5 {[%emt 0:00:49]} 43. Qf2 {[%emt 0:00:50]} e5 {[%emt 0:05:28]} 44. Qxf5 {[%emt 0:04:27]} Bxf5 {[%emt 0:00:44]} 45. dxe5 {[%emt 0:00:53]} Bxc2 {[%emt 0:00:11]} 46. g4 {[%emt 0:06:32]} Be4+ {[%emt 0:02:28]} 47. Kg3 {[%emt 0:02:40]} Kf7 {[%emt 0:01:18]} 48. Rf1+ {[%emt 0:01:45]} Ke7 {[%emt 0:01:23]} 49. Rd1 {[%emt 0:02:40]} Ke6 {[%emt 0:01:12]} 50. Kf4 {[%emt 0:00:47]} Bc2 {[%emt 0:01:42]} 51. Rd2 {[%emt 0:01:16]} Bxa4 {[%emt 0:01:02]} 52. Bxa5 {[%emt 0:01:35]} Bb3 {[%emt 0:02:15]} 53. Bc3 {[%emt 0:01:38]} Bc4 {[%emt 0:01:13]} 54. h5 {[%emt 0:00:52]} Ke7 {[%emt 0:01:13]} 55. hxg6 {[%emt 0:02:12]} hxg6 {[%emt 0:00:06]} 56. Ke3 {[%emt 0:00:39]} Ke6 {[%emt 0:01:10]} 57. Rf2 {[%emt 0:00:18]} Kd7 {[%emt 0:02:32]} 58. Rf7+ {[%emt 0:00:37]} Ne7 {[%emt 0:00:56]} 59. Rf6 {[%emt 0:01:46]} Bb3 {[%emt 0:00:53]} 60. e6+ {[%emt 0:01:06]} Ke8 {[%emt 0:00:22]} 61. Bb4 {[%emt 0:00:47]} d4+ {[%emt 0:01:38]} 62. Kd2 {[%emt 0:01:20]} Ba2 {[%emt 0:00:47]} 63. Rf7 {[%emt 0:00:16]} Bb1 {[%emt 0:00:14]} 64. Rxe7+ {[%emt 0:00:12]} Kd8 {[%emt 0:00:04]} 65. Ra7 {[%emt 0:00:21]} 1-0

[Event "EYCC Girls-U14 2019"]
[Site "Bratislava"]
[Date "2019.08.10"]
[Round "9.19"]
[White "Obrochta, Lena"]
[Black "Zvereva, Margarita"]
[Result "0-1"]
[ECO "B93"]
[WhiteElo "1598"]
[BlackElo "1693"]
[Annotator "NA"]
[PlyCount "108"]
[EventDate "2019.08.02"]
[EventType "swiss"]
[EventCountry "SVK"]
[SourceTitle "playchess.com"]
[Source "ChessBase"]
[SourceQuality "1"]
[TimeControl "40/5400+30:1800+30"]

1. e4 {[%emt 0:00:00]} c5 {[%emt 0:00:00]} 2. Nf3 {[%emt 0:00:00]} d6 {[%emt 0:00:00]} 3. d4 {[%emt 0:00:00]} cxd4 {[%emt 0:00:00]} 4. Nxd4 {[%emt 0:00:00]} Nf6 {[%emt 0:00:00]} 5. Nc3 {[%emt 0:00:03]} a6 {[%emt 0:00:00]} 6. f4 {[%emt 0:00:12]} Nc6 {[%emt 0:14:05]} 7. a4 {[%emt 0:04:21]} Qb6 {[%emt 0:09:57]} 8. Nb3 {[%emt 0:03:35]} Na5 {[%emt 0:14:13]} 9. Nxa5 {[%emt 0:03:01]} Qxa5 {[%emt 0:00:18]} 10. Bd3 {[%emt 0:01:22]} g6 {[%emt 0:11:08]} 11. O-O {[%emt 0:05:11]} Bg7 {[%emt 0:10:40]} 12. Kh1 {[%emt 0:04:28]} O-O {[%emt 0:08:18]} 13. Qf3 {[%emt 0:05:04]} Bd7 {[%emt 0:04:33]} 14. Bd2 {[%emt 0:02:54]} Qc7 {[%emt 0:01:38]} 15. f5 {[%emt 0:09:38]} Bc6 {[%emt 0:02:17]} 16. Rae1 {[%emt 0:05:08]} Nd7 {[%emt 0:03:00]} 17. Qh3 {[%emt 0:05:39]} Ne5 {[%emt 0:03:37]} 18. Qh4 {[%emt 0:03:32]} b5 {[%emt 0:05:17]} 19. axb5 {[%emt 0:06:52]} axb5 {[%emt 0:00:16]} 20. Bxb5 {[%emt 0:06:51]} Bxb5 {[%emt 0:00:31]} 21. Nxb5 {[%emt 0:00:08]} Qxc2 {[%emt 0:00:20]} 22. Bc3 {[%emt 0:02:55]} Qd3 {[%emt 0:06:48]} 23. Nc7 {[%emt 0:01:37]} Bf6 {[%emt 0:00:15]} 24. Qf4 {[%emt 0:01:31]} g5 {[%emt 0:02:03]} 25. Qc1 {[%emt 0:01:43]} Rac8 {[%emt 0:00:52]} 26. Nd5 {[%emt 0:00:40]} Kg7 {[%emt 0:01:32]} 27. Re3 {[%emt 0:01:38]} Qb5 {[%emt 0:00:40]} 28. Rg3 {[%emt 0:01:05]} h6 {[%emt 0:00:21]} 29. Qd1 {[%emt 0:02:10]} Rc4 {[%emt 0:00:57]} 30. Re1 {[%emt 0:00:24]} Rcc8 {[%emt 0:00:47]} 31. Nf4 {[%emt 0:04:31]} Kh7 {[%emt 0:00:27]} 32. Nd5 {[%emt 0:01:56]} Qc6 {[%emt 0:00:32]} 33. Qh5 {[%emt 0:02:10]} Kg7 {[%emt 0:00:13]} 34. h3 {[%emt 0:05:17]} Qa6 {[%emt 0:00:35]} 35. Qd1 {[%emt 0:00:58]} Rb8 {[%emt 0:00:35]} 36. h4 {[%emt 0:01:34]} Rh8 {[%emt 0:00:18]} 37. Nxf6 {[%emt 0:03:51]} exf6 {[%emt 0:00:05]} 38. Qd4 {[%emt 0:01:15]} Qb6 {[%emt 0:00:31]} 39. Qd5 {[%emt 0:01:26]} Qf2 {[%emt 0:00:35]} 40. Rh3 {[%emt 0:00:00]} g4 {[%emt 0:00:00]} 41. Rhe3 {[%emt 0:19:41]} Qxh4+ {[%emt 0:01:30]} 42. Kg1 {[%emt 0:00:07]} g3 {[%emt 0:03:03]} 43. b4 {[%emt 0:02:57]} Ng4 {[%emt 0:04:47]} 44. Rd3 {[%emt 0:02:39]} Qh2+ {[%emt 0:03:01]} 45. Kf1 {[%emt 0:00:09]} Qh1+ {[%emt 0:00:04]} 46. Ke2 {[%emt 0:00:13]} Qxg2+ {[%emt 0:00:09]} 47. Kd1 {[%emt 0:00:24]} Nf2+ {[%emt 0:00:49]} 48. Kd2 {[%emt 0:01:29]} Nxd3+ {[%emt 0:01:19]} 49. Kxd3 {[%emt 0:00:17]} Qf3+ {[%emt 0:01:47]} 50. Kd2 {[%emt 0:00:39]} Rhc8 {[%emt 0:06:16]} 51. Re3 {[%emt 0:02:52]} Qf2+ {[%emt 0:00:40]} 52. Re2 {[%emt 0:00:36]} Qf4+ {[%emt 0:00:44]} 53. Re3 {[%emt 0:00:19]} Rxc3 {[%emt 0:00:28]} 54. Kxc3 {[%emt 0:00:34]} Qxe3+ {[%emt 0:00:05]} 0-1